[Event "Nové Hrady - Open"]
[Site "Nové Hrady, Czech Republic"]
[Date "2023.08.16"]
[Round "4.5"]
[White "Slabý, Matěj"]
[Black "Jiřík, Radovan"]
[Result "1-0"]
[TimeControl "2x90min+30s"]
[WhiteFideId "23734876"]
[BlackFideId "393118"]
[WhiteElo "1894"]
[BlackElo "1445"]

1. e4 {[%clk 01:30:42]} {[%emt 00:00:16]} e5 {[%clk 01:30:44]} {[%emt
00:00:17]} 2. Bc4 {[%clk 01:31:01]} {[%emt 00:00:12]} Nf6 {[%clk 01:30:47]}
{[%emt 00:00:27]} 3. d3 {[%clk 01:31:02]} {[%emt 00:00:29]} Be7 {[%clk
01:30:49]} {[%emt 00:00:29]} 4. Nf3 {[%clk 01:28:11]} {[%emt 00:03:20]} Nc6
{[%clk 01:31:03]} {[%emt 00:00:16]} 5. O-O {[%clk 01:27:01]} {[%emt 00:01:39]}
O-O {[%clk 01:31:12]} {[%emt 00:00:22]} 6. c3 {[%clk 01:24:41]} {[%emt
00:02:50]} d6 {[%clk 01:30:56]} {[%emt 00:00:46]} 7. h3 {[%clk 01:25:04]}
{[%emt 00:00:06]} Na5 {[%clk 01:29:17]} {[%emt 00:02:09]} 8. Bb5 {[%clk
01:25:00]} {[%emt 00:00:35]} Bd7 {[%clk 01:25:23]} {[%emt 00:04:24]} 9. Bxd7
{[%clk 01:17:31]} {[%emt 00:07:59]} Qxd7 {[%clk 01:24:03]} {[%emt 00:01:50]} 10.
b4 {[%clk 01:16:01]} {[%emt 00:10:10]} Nc6 {[%clk 01:24:26]} 11. b5 {[%clk
01:16:02]} Nd8 {[%clk 01:23:39]} 12. c4 {[%clk 01:16:22]} Ne6 {[%clk 01:22:49]}
13. Be3 {[%clk 01:16:17]} c6 {[%clk 01:22:02]} 14. bxc6 {[%clk 01:12:10]}
{[%emt 00:01:43]} Qxc6 {[%clk 01:20:17]} {[%emt 00:02:14]} 15. Nc3 {[%clk
01:12:05]} {[%emt 00:00:36]} Nc7 {[%clk 01:01:46]} {[%emt 00:19:00]} 16. Qb3
{[%clk 00:57:25]} {[%emt 00:15:09]} Rfe8 {[%clk 00:44:29]} {[%emt 00:17:47]} 17.
Rab1 {[%clk 00:57:33]} {[%emt 00:00:23]} b6 {[%clk 00:44:13]} {[%emt 00:00:46]}
18. a4 {[%clk 00:52:39]} {[%emt 00:05:24]} Rab8 {[%emt 00:17:51]} 19. Qa2
{[%clk 00:07:50]} {[%emt 00:32:07]} Bf8 {[%clk 00:26:08]} {[%emt 00:14:26]} 20.
a5 {[%clk 00:07:57]} {[%emt 00:00:23]} Nd7 {[%clk 00:23:44]} {[%emt 00:02:53]}
21. axb6 {[%clk 00:08:13]} {[%emt 00:00:14]} axb6 {[%clk 00:22:33]} {[%emt
00:01:42]} 22. Rfc1 {[%clk 00:05:01]} {[%emt 00:03:42]} Ra8 {[%clk 00:22:26]}
{[%emt 00:00:36]} 23. Qe2 {[%clk 00:05:02]} {[%emt 00:00:29]} Nc5 {[%clk
00:11:36]} {[%emt 00:11:20]} 24. Rc2 {[%clk 00:03:54]} {[%emt 00:01:38]} Ra3
{[%clk 00:11:21]} {[%emt 00:00:45]} 25. Bc1 {[%clk 00:04:13]} {[%emt 00:00:11]}
Rb3 {[%clk 00:10:18]} {[%emt 00:01:34]} 26. Rxb3 {[%clk 00:04:07]} {[%emt
00:00:35]} Nxb3 {[%clk 00:10:37]} {[%emt 00:00:11]} 27. Be3 {[%clk 00:04:35]}
{[%emt 00:00:03]} Ra8 {[%clk 00:10:06]} {[%emt 00:01:00]} 28. Rb2 {[%clk
00:04:48]} {[%emt 00:00:17]} Ra1+ {[%clk 00:10:27]} {[%emt 00:00:09]} 29. Kh2
{[%clk 00:05:05]} {[%emt 00:00:13]} Nc5 {[%clk 00:09:39]} {[%emt 00:01:18]} 30.
Qc2 {[%clk 00:01:04]} {[%emt 00:04:32]} Be7 {[%clk 00:09:55]} {[%emt 00:00:14]}
31. d4 {[%clk 00:00:33]} {[%emt 00:01:00]} exd4 {[%clk 00:09:51]} {[%emt
00:00:34]} 32. Nxd4 {[%clk 00:01:02]} {[%emt 00:00:02]} Qb7 {[%clk 00:09:46]}
{[%emt 00:00:35]} 33. Nd5 {[%emt 00:00:47]} Nxd5 {[%clk 00:10:03]} {[%emt
00:00:06]} 34. exd5 {[%clk 00:01:03]} {[%emt 00:00:18]} Bf6 {[%clk 00:10:24]}
{[%emt 00:00:09]} 35. Rb5 {[%clk 00:00:50]} {[%emt 00:00:43]} Be5+ {[%clk
00:10:40]} {[%emt 00:00:14]} 36. f4 {[%clk 00:01:00]} {[%emt 00:00:20]} Bf6
{[%clk 00:10:46]} {[%emt 00:00:24]} 37. Qf5 {[%clk 00:00:37]} {[%emt 00:00:54]}
Bxd4 {[%clk 00:10:16]} {[%emt 00:01:00]} 38. Bxd4 {[%clk 00:00:57]} {[%emt
00:00:11]} Nd7 {[%clk 00:09:39]} {[%emt 00:01:05]} 39. Bxa1 {[%clk 00:01:14]}
{[%emt 00:00:13]} Nf6 {[%clk 00:09:30]} {[%emt 00:00:40]} 40. Rxb6 {[%clk
00:01:23]} {[%emt 00:00:21]} Qc7 {[%clk 00:07:51]} {[%emt 00:02:09]} 41. Bxf6
{[%clk 00:01:40]} {[%emt 00:00:13]} gxf6 {[%clk 00:08:02]} {[%emt 00:00:18]} 42.
Rc6 {[%clk 00:02:03]} {[%emt 00:00:08]} Qe7 {[%clk 00:08:09]} {[%emt 00:00:22]}
43. Rc8+ {[%clk 00:02:11]} {[%emt 00:00:23]} Kg7 {[%clk 00:08:31]} {[%emt
00:00:08]} 44. Qg4+ {[%clk 00:02:34]} {[%emt 00:00:07]} Kh6 {[%emt 00:00:19]}
45. Qh4+ Kg6 {[%emt 00:00:03]} 1-0

[Event "Nové Hrady - Open"]
[Site "Nové Hrady, Czech Republic"]
[Date "2023.08.16"]
[Round "4.6"]
[White "Šedivý, Karel"]
[Black "Berkovec, Josef"]
[Result "1/2-1/2"]
[TimeControl "2x90min+30s"]
[WhiteFideId "359653"]
[WhiteElo "1583"]
[BlackElo "1537"]

1. d4 {[%clk 01:30:57]} {[%emt 00:00:03]} d5 {[%clk 01:30:51]} {[%emt
00:00:09]} 2. Nf3 {[%clk 01:30:45]} {[%emt 00:00:42]} Nf6 {[%clk 01:31:05]}
{[%emt 00:00:16]} 3. c4 {[%clk 01:30:36]} {[%emt 00:00:38]} e6 {[%clk
01:31:18]} {[%emt 00:00:17]} 4. Nc3 {[%clk 01:30:31]} {[%emt 00:00:36]} a6
{[%clk 01:31:06]} {[%emt 00:00:42]} 5. cxd5 {[%clk 01:28:53]} {[%emt 00:02:07]}
exd5 {[%clk 01:31:11]} {[%emt 00:00:25]} 6. Bg5 {[%clk 01:25:25]} {[%emt
00:03:59]} c6 {[%clk 01:30:57]} {[%emt 00:00:44]} 7. e3 {[%clk 01:22:59]}
{[%emt 00:02:56]} Be7 {[%clk 01:31:08]} {[%emt 00:00:18]} 8. Bd3 {[%clk
01:19:28]} {[%emt 00:04:01]} Nbd7 {[%clk 01:31:04]} {[%emt 00:00:35]} 9. O-O
{[%clk 01:18:22]} {[%emt 00:01:36]} Ne4 {[%clk 01:30:17]} {[%emt 00:01:17]} 10.
Bxe7 {[%clk 01:15:40]} {[%emt 00:03:11]} Qxe7 {[%clk 01:29:41]} {[%emt
00:01:07]} 11. Qc2 {[%clk 01:12:25]} {[%emt 00:15:55]} Ndf6 {[%clk 01:29:25]}
12. Ne5 {[%clk 01:09:25]} Nxc3 {[%clk 01:27:54]} 13. bxc3 {[%clk 01:06:46]} O-O
{[%clk 01:28:13]} 14. Rab1 {[%clk 01:06:26]} Qc7 {[%clk 01:24:11]} {[%emt
00:02:48]} 15. Rfc1 {[%clk 01:02:43]} {[%emt 00:04:12]} b5 {[%clk 01:22:10]}
{[%emt 00:02:31]} 16. Qb3 {[%clk 00:48:55]} {[%emt 00:14:18]} Be6 {[%clk
01:20:12]} {[%emt 00:02:29]} 17. Qb4 {[%clk 00:47:54]} {[%emt 00:01:31]} Ne4
{[%clk 01:13:55]} {[%emt 00:06:47]} 18. Bxe4 {[%clk 00:46:44]} {[%emt
00:01:40]} dxe4 {[%clk 01:14:18]} {[%emt 00:00:07]} 19. Qc5 {[%clk 00:42:46]}
{[%emt 00:04:27]} Rfc8 {[%clk 01:13:34]} {[%emt 00:01:14]} 20. f3 {[%clk
00:38:48]} {[%emt 00:04:28]} f6 {[%clk 01:12:22]} {[%emt 00:01:43]} 21. Ng4
{[%clk 00:39:03]} {[%emt 00:00:15]} exf3 {[%clk 01:12:26]} {[%emt 00:00:26]} 22.
gxf3 {[%clk 00:39:24]} {[%emt 00:00:09]} Bxa2 {[%clk 01:10:35]} {[%emt
00:02:21]} 23. Rb2 {[%clk 00:39:38]} {[%emt 00:00:16]} Be6 {[%clk 01:10:37]}
{[%emt 00:00:27]} 24. Rg2 {[%clk 00:38:37]} {[%emt 00:01:31]} Kf7 {[%clk
01:07:11]} {[%emt 00:03:56]} 25. Qh5+ {[%clk 00:37:22]} {[%emt 00:01:45]} Kf8
{[%clk 01:04:06]} {[%emt 00:03:36]} 26. Qxh7 {[%clk 00:33:48]} {[%emt
00:04:03]} Bg8 {[%clk 01:02:02]} {[%emt 00:02:34]} 27. Qf5 {[%clk 00:32:45]}
{[%emt 00:01:33]} Qf7 {[%clk 01:00:34]} {[%emt 00:01:58]} 28. Qc5+ {[%clk
00:27:14]} {[%emt 00:06:01]} Qe7 {[%clk 00:59:46]} {[%emt 00:01:18]} 29. Nxf6
{[%clk 00:24:25]} {[%emt 00:03:19]} Qxc5 {[%clk 00:59:16]} {[%emt 00:01:01]} 30.
Nd7+ {[%clk 00:24:43]} {[%emt 00:00:11]} Ke8 {[%emt 00:02:15]} 31. Nxc5 {[%emt
00:00:11]} Rc7 {[%clk 00:57:14]} {[%emt 00:00:05]} 32. Kf2 {[%clk 00:24:23]}
{[%emt 00:00:51]} a5 {[%clk 00:57:13]} {[%emt 00:00:31]} 33. Rcg1 {[%clk
00:22:19]} {[%emt 00:02:34]} Raa7 {[%clk 00:57:34]} {[%emt 00:00:09]} 34. Ra1
{[%clk 00:21:30]} {[%emt 00:01:19]} a4 {[%clk 00:57:48]} {[%emt 00:00:17]} 35.
Ra3 {[%clk 00:20:09]} {[%emt 00:01:50]} Kf8 {[%clk 00:53:53]} {[%emt 00:04:24]}
36. e4 {[%clk 00:20:00]} {[%emt 00:00:40]} Bf7 {[%clk 00:52:05]} {[%emt
00:02:19]} 37. f4 {[%clk 00:17:30]} {[%emt 00:03:00]} Re7 {[%clk 00:51:19]}
{[%emt 00:01:15]} 38. e5 {[%clk 00:16:35]} {[%emt 00:01:25]} Bd5 {[%clk
00:51:05]} {[%emt 00:00:44]} 39. Rg5 {[%clk 00:15:47]} {[%emt 00:01:18]} Kf7
{[%clk 00:50:10]} {[%emt 00:01:26]} 40. h4 {[%clk 00:11:06]} {[%emt 00:05:11]}
g6 {[%clk 00:49:27]} {[%emt 00:01:12]} 41. Kg3 {[%clk 00:04:52]} {[%emt
00:06:44]} Rac7 {[%clk 00:49:16]} {[%emt 00:00:41]} 42. Ra1 {[%clk 00:02:29]}
{[%emt 00:02:53]} Ra7 {[%clk 00:49:23]} {[%emt 00:00:24]} 43. Ra3 {[%clk
00:02:41]} {[%emt 00:00:19]} Rac7 {[%clk 00:49:46]} {[%emt 00:00:06]} 44. Kf2
{[%clk 00:02:48]} {[%emt 00:00:22]} Ra7 {[%clk 00:50:07]} {[%emt 00:00:10]} 45.
Ke3 {[%clk 00:03:02]} {[%emt 00:00:16]} Rac7 {[%clk 00:50:30]} {[%emt
00:00:08]} 46. Kd2 {[%clk 00:03:03]} {[%emt 00:00:28]} Ra7 {[%clk 00:50:44]}
{[%emt 00:00:16]} 47. Kc1 {[%clk 00:03:07]} {[%emt 00:00:25]} Rac7 {[%clk
00:50:43]} {[%emt 00:00:32]} 48. Kb2 {[%clk 00:03:28]} {[%emt 00:00:09]} Ra7
{[%clk 00:51:03]} {[%emt 00:00:09]} 1/2-1/2

[Event "Nové Hrady - Open"]
[Site "Nové Hrady, Czech Republic"]
[Date "2023.08.16"]
[Round "4.7"]
[White "Postl, František"]
[Black "Mošnička, Jan"]
[Result "1/2-1/2"]
[TimeControl "2x90min+30s"]
[BlackFideId "329398"]
[WhiteElo "1180"]
[BlackElo "1784"]

1. Nf3 {[%clk 01:30:57]} {[%emt 00:00:02]} Nf6 {[%clk 01:29:58]} {[%emt
00:01:03]} 2. g3 {[%clk 01:31:12]} {[%emt 00:00:15]} c5 {[%clk 01:30:08]}
{[%emt 00:00:19]} 3. c4 {[%clk 01:31:37]} {[%emt 00:00:06]} Nc6 {[%clk
01:30:33]} {[%emt 00:00:05]} 4. Nc3 {[%clk 01:31:49]} {[%emt 00:00:18]} g6
{[%clk 01:30:54]} {[%emt 00:00:08]} 5. Bg2 {[%clk 01:32:12]} {[%emt 00:00:07]}
Bg7 {[%clk 01:31:17]} {[%emt 00:00:08]} 6. O-O {[%clk 01:32:31]} {[%emt
00:00:10]} O-O {[%clk 01:31:42]} {[%emt 00:00:05]} 7. d3 {[%clk 01:29:16]}
{[%emt 00:03:47]} d5 {[%clk 01:28:10]} {[%emt 00:04:02]} 8. cxd5 {[%clk
01:16:08]} {[%emt 00:13:37]} Nxd5 {[%clk 01:25:59]} {[%emt 00:02:41]} 9. Bd2
{[%clk 01:13:43]} {[%emt 00:14:48]} Rb8 {[%clk 01:20:35]} 10. Ng5 {[%clk
01:05:46]} {[%emt 00:02:27]} e6 {[%clk 01:08:49]} {[%emt 00:12:16]} 11. Nge4
{[%clk 00:54:22]} {[%emt 00:11:55]} b6 {[%clk 00:59:28]} {[%emt 00:09:51]} 12.
Qc1 {[%clk 00:50:10]} {[%emt 00:04:42]} Bb7 {[%clk 00:54:48]} {[%emt 00:05:09]}
13. Bg5 {[%clk 00:48:56]} {[%emt 00:01:43]} Nxc3 {[%clk 00:45:53]} {[%emt
00:09:26]} 14. bxc3 {[%clk 00:48:51]} {[%emt 00:00:36]} Qc7 {[%clk 00:41:27]}
{[%emt 00:04:55]} 15. Nf6+ {[%clk 00:37:36]} {[%emt 00:11:45]} Kh8 {[%clk
00:41:19]} {[%emt 00:00:37]} 16. f4 {[%clk 00:37:10]} {[%emt 00:00:57]} h6
{[%clk 00:35:31]} {[%emt 00:06:19]} 17. Bh4 {[%clk 00:31:32]} {[%emt 00:06:07]}
Ne7 {[%clk 00:28:24]} {[%emt 00:07:37]} 18. e4 {[%clk 00:30:01]} {[%emt
00:02:01]} Ba6 {[%clk 00:27:24]} {[%emt 00:01:30]} 19. Rf3 {[%clk 00:27:38]}
{[%emt 00:02:54]} Rfd8 {[%clk 00:27:39]} {[%emt 00:00:14]} 20. Qd2 {[%clk
00:25:15]} {[%emt 00:02:53]} Rd6 {[%clk 00:26:00]} {[%emt 00:02:08]} 21. Rc1
{[%clk 00:22:54]} {[%emt 00:02:52]} Ng8 {[%clk 00:22:45]} {[%emt 00:03:45]} 22.
Ng4 {[%clk 00:19:53]} {[%emt 00:03:32]} Bb7 {[%clk 00:16:29]} {[%emt 00:06:45]}
23. Re1 {[%clk 00:19:22]} {[%emt 00:01:02]} Ne7 {[%clk 00:13:04]} {[%emt
00:03:55]} 24. Ne5 {[%clk 00:18:29]} {[%emt 00:01:23]} Kg8 {[%clk 00:13:22]}
{[%emt 00:00:12]} 25. Nc4 {[%clk 00:17:06]} {[%emt 00:01:52]} Rdd8 {[%clk
00:13:36]} {[%emt 00:00:15]} 26. Rf2 {[%clk 00:16:27]} {[%emt 00:01:10]} Ba6
{[%clk 00:10:33]} {[%emt 00:03:33]} 27. Qc2 {[%clk 00:15:21]} {[%emt 00:01:37]}
Bxc4 {[%clk 00:10:51]} {[%emt 00:00:11]} 28. dxc4 {[%clk 00:15:44]} {[%emt
00:00:07]} Rd7 {[%clk 00:10:55]} {[%emt 00:00:26]} 29. g4 {[%clk 00:13:44]}
{[%emt 00:02:31]} Rbd8 {[%clk 00:11:06]} {[%emt 00:00:18]} 30. Bg3 {[%clk
00:12:47]} {[%emt 00:01:28]} Qc8 {[%clk 00:11:13]} {[%emt 00:00:22]} 31. f5
{[%clk 00:12:24]} {[%emt 00:00:53]} exf5 {[%clk 00:10:12]} {[%emt 00:01:30]} 32.
exf5 {[%clk 00:12:08]} {[%emt 00:00:47]} gxf5 {[%clk 00:10:11]} {[%emt
00:00:30]} 33. gxf5 {[%clk 00:11:59]} {[%emt 00:00:40]} Bf6 {[%clk 00:10:28]}
{[%emt 00:00:13]} 34. Rf4 {[%clk 00:11:14]} {[%emt 00:01:16]} Rd3 {[%clk
00:09:47]} {[%emt 00:01:11]} 35. Rg4+ {[%clk 00:08:43]} {[%emt 00:03:01]} Kf8
{[%clk 00:08:59]} {[%emt 00:01:16]} 36. Qf2 {[%clk 00:05:14]} {[%emt 00:04:01]}
Ng8 {[%clk 00:04:39]} {[%emt 00:04:49]} 37. Bd5 {[%clk 00:04:32]} {[%emt
00:01:13]} R8xd5 {[%clk 00:04:02]} {[%emt 00:01:06]} 38. cxd5 {[%clk 00:04:54]}
{[%emt 00:00:09]} Rxd5 {[%clk 00:04:26]} {[%emt 00:00:05]} 39. Rge4 {[%clk
00:04:58]} {[%emt 00:00:27]} Qxf5 {[%clk 00:04:08]} {[%emt 00:00:48]} 40. Bd6+
{[%clk 00:04:52]} {[%emt 00:00:36]} Kg7 {[%clk 00:03:53]} {[%emt 00:00:44]} 41.
Qg3+ {[%clk 00:05:10]} {[%emt 00:00:13]} Kh7 {[%clk 00:03:31]} {[%emt
00:00:51]} 42. Be5 {[%clk 00:03:56]} {[%emt 00:01:45]} Rxe5 {[%clk 00:01:50]}
{[%emt 00:02:11]} 43. Rxe5 {[%clk 00:04:10]} {[%emt 00:00:16]} Bxe5 {[%clk
00:02:07]} {[%emt 00:00:12]} 44. Rxe5 {[%clk 00:04:28]} {[%emt 00:00:13]} Qb1+
{[%clk 00:02:17]} {[%emt 00:00:19]} 45. Qe1 {[%clk 00:04:20]} {[%emt 00:00:38]}
Qxa2 {[%clk 00:02:21]} {[%emt 00:00:26]} 46. Rf5 {[%clk 00:04:27]} {[%emt
00:00:24]} Qc4 {[%clk 00:02:29]} {[%emt 00:00:21]} 47. Qb1 {[%clk 00:04:07]}
{[%emt 00:00:51]} Qg4+ {[%clk 00:02:47]} {[%emt 00:00:12]} 48. Kh1 {[%clk
00:04:31]} {[%emt 00:00:05]} Kg7 {[%clk 00:02:55]} {[%emt 00:00:21]} 49. Qf1
{[%clk 00:04:40]} {[%emt 00:00:22]} Qe4+ {[%clk 00:03:04]} {[%emt 00:00:20]} 50.
Kg1 {[%clk 00:05:00]} {[%emt 00:00:11]} Qg4+ {[%clk 00:03:27]} {[%emt
00:00:07]} 51. Kh1 {[%clk 00:05:26]} {[%emt 00:00:05]} Qe4+ {[%clk 00:03:52]}
{[%emt 00:00:04]} 1/2-1/2

[Event "Nové Hrady - Open"]
[Site "Nové Hrady, Czech Republic"]
[Date "2023.08.16"]
[Round "4.8"]
[White "Junek, Petr"]
[Black "Hokr, Matyáš"]
[Result "1/2-1/2"]
[TimeControl "2x90min+30s"]
[WhiteFideId "23739282"]
[BlackFideId "23734663"]
[WhiteElo "1554"]
[BlackElo "1228"]

1. e4 {[%clk 01:30:53]} {[%emt 00:00:06]} e6 {[%clk 01:29:46]} {[%emt
00:01:15]} 2. d4 {[%clk 01:31:13]} {[%emt 00:00:10]} d5 {[%clk 01:30:06]}
{[%emt 00:00:09]} 3. exd5 {[%clk 01:31:38]} {[%emt 00:00:05]} exd5 {[%clk
01:30:32]} {[%emt 00:00:04]} 4. Bd3 {[%clk 01:31:56]} {[%emt 00:00:13]} Bd6
{[%clk 01:30:46]} {[%emt 00:00:16]} 5. Nc3 {[%clk 01:32:08]} {[%emt 00:00:17]}
Nf6 {[%clk 01:30:51]} {[%emt 00:00:25]} 6. f3 {[%clk 01:31:40]} {[%emt
00:00:59]} c6 {[%clk 01:30:57]} {[%emt 00:00:25]} 7. Nge2 {[%clk 01:31:58]}
{[%emt 00:00:11]} Qc7 {[%clk 01:31:09]} {[%emt 00:00:18]} 8. g3 {[%clk
01:30:47]} {[%emt 00:01:41]} O-O {[%clk 01:30:54]} {[%emt 00:00:45]} 9. Bg5
{[%clk 01:31:00]} {[%emt 00:00:17]} Nbd7 {[%clk 01:30:24]} {[%emt 00:00:59]} 10.
Qd2 {[%clk 01:31:06]} {[%emt 00:00:25]} b5 {[%clk 01:29:55]} {[%emt 00:01:00]}
11. Bf4 {[%clk 01:16:19]} {[%emt 00:15:16]} Re8 {[%clk 01:27:02]} {[%emt
00:16:24]} 12. O-O-O {[%clk 01:00:08]} {[%emt 00:03:39]} a5 {[%clk 01:25:01]}
{[%emt 00:02:32]} 13. h4 {[%clk 00:50:16]} {[%emt 00:07:43]} Nf8 {[%clk
01:22:11]} {[%emt 00:05:58]} 14. h5 {[%clk 00:45:11]} {[%emt 00:05:35]} Bxf4
{[%clk 01:19:47]} {[%emt 00:02:54]} 15. gxf4 {[%clk 00:44:53]} {[%emt
00:00:47]} h6 {[%clk 01:18:01]} {[%emt 00:02:16]} 16. Rdg1 {[%clk 00:44:44]}
{[%emt 00:00:40]} Ne6 {[%clk 01:17:54]} {[%emt 00:00:37]} 17. f5 {[%clk
00:36:17]} {[%emt 00:08:57]} Ng5 {[%clk 01:16:58]} {[%emt 00:01:26]} 18. Rxg5
{[%clk 00:36:16]} {[%emt 00:00:31]} hxg5 {[%clk 01:17:18]} {[%emt 00:00:11]} 19.
Qxg5 {[%clk 00:36:32]} {[%emt 00:00:13]} Nh7 {[%clk 01:16:36]} {[%emt
00:01:11]} 20. Qg2 {[%clk 00:35:13]} {[%emt 00:01:42]} b4 {[%clk 01:13:34]}
{[%emt 00:03:40]} 21. h6 {[%clk 00:29:30]} {[%emt 00:06:12]} f6 {[%clk
01:10:39]} {[%emt 00:03:26]} 22. Na4 {[%clk 00:27:09]} {[%emt 00:02:50]} Ra7
{[%clk 01:04:45]} {[%emt 00:06:25]} 23. Rg1 {[%clk 00:25:11]} {[%emt 00:02:28]}
Ng5 {[%clk 00:57:16]} {[%emt 00:07:59]} 24. Nc5 {[%clk 00:22:04]} {[%emt
00:03:37]} Re3 {[%clk 00:49:53]} {[%emt 00:07:52]} 25. f4 {[%clk 00:16:52]}
{[%emt 00:05:42]} Rxe2 {[%clk 00:43:39]} {[%emt 00:06:45]} 26. Qxe2 {[%clk
00:13:28]} {[%emt 00:03:53]} Qxf4+ {[%clk 00:43:54]} {[%emt 00:00:16]} 27. Kb1
{[%clk 00:13:43]} {[%emt 00:00:15]} Bxf5 {[%clk 00:38:06]} {[%emt 00:06:18]} 28.
Bxf5 {[%clk 00:11:10]} {[%emt 00:03:03]} Qxf5 {[%clk 00:38:15]} {[%emt
00:00:22]} 29. hxg7 {[%clk 00:07:54]} {[%emt 00:03:44]} Kxg7 {[%clk 00:34:56]}
{[%emt 00:57:55]} 1/2-1/2

[Event "Nové Hrady - Open"]
[Site "Nové Hrady, Czech Republic"]
[Date "2023.08.16"]
[Round "4.9"]
[White "Sander, Antonín"]
[Black "Berkovec, Jakub"]
[Result "1/2-1/2"]
[TimeControl "2x90min+30s"]
[WhiteFideId "23749920"]
[BlackFideId "23727080"]
[WhiteElo "1448"]
[BlackElo "1288"]

1. e4 {[%clk 01:30:57]} c5 {[%clk 01:30:34]} 2. d4 {[%clk 01:31:13]} cxd4
{[%clk 01:30:22]} 3. c3 {[%clk 01:31:35]} Nf6 {[%clk 01:29:44]} 4. e5 {[%clk
01:31:56]} Nd5 {[%clk 01:29:04]} 5. Qxd4 {[%clk 01:32:15]} e6 {[%clk 01:26:51]}
6. Nf3 {[%clk 01:32:38]} b6 {[%clk 01:25:19]} 7. Qe4 {[%clk 01:25:40]} Nc6
{[%clk 01:21:27]} 8. Bc4 {[%clk 01:21:30]} Nde7 {[%clk 01:17:56]} 9. O-O {[%clk
01:18:49]} Bb7 {[%clk 01:16:00]} 10. Qe2 {[%clk 01:14:55]} {[%emt 00:03:08]}
Qc7 {[%clk 01:14:44]} 11. Na3 {[%clk 01:11:23]} {[%emt 00:03:18]} a6 {[%clk
01:11:02]} {[%emt 00:04:13]} 12. Bd3 {[%clk 01:09:17]} {[%emt 00:02:37]} Nc8
{[%clk 01:05:08]} {[%emt 00:06:24]} 13. Nc2 {[%clk 01:03:36]} {[%emt 00:06:10]}
d6 {[%clk 01:03:29]} {[%emt 00:02:09]} 14. Ne3 {[%clk 00:47:28]} {[%emt
00:16:38]} Nxe5 {[%clk 00:58:01]} {[%emt 00:05:58]} 15. Nxe5 {[%clk 00:46:57]}
{[%emt 00:01:01]} dxe5 {[%clk 00:58:10]} {[%emt 00:00:21]} 16. Nc4 {[%clk
00:45:39]} {[%emt 00:01:47]} b5 {[%clk 00:53:40]} {[%emt 00:05:01]} 17. Nxe5
{[%clk 00:37:38]} {[%emt 00:08:31]} Bd6 {[%clk 00:51:59]} {[%emt 00:02:11]} 18.
Bf4 {[%clk 00:32:46]} {[%emt 00:05:22]} Bxe5 {[%clk 00:39:53]} {[%emt
00:12:37]} 19. Bxe5 {[%clk 00:32:09]} {[%emt 00:01:06]} Qc6 {[%clk 00:38:26]}
{[%emt 00:01:56]} 20. f3 {[%clk 00:27:30]} {[%emt 00:05:09]} O-O {[%clk
00:37:35]} {[%emt 00:01:22]} 21. Be4 {[%clk 00:25:54]} {[%emt 00:02:06]} Qb6+
{[%clk 00:36:00]} {[%emt 00:02:05]} 22. Bd4 {[%clk 00:25:34]} {[%emt 00:00:50]}
Qc7 {[%clk 00:36:13]} {[%emt 00:00:17]} 23. Bxb7 {[%clk 00:24:43]} {[%emt
00:01:21]} Qxb7 {[%clk 00:36:32]} {[%emt 00:00:11]} 24. Qe5 {[%clk 00:24:40]}
{[%emt 00:00:32]} f6 {[%clk 00:33:52]} {[%emt 00:03:11]} 25. Qxe6+ {[%clk
00:25:00]} {[%emt 00:00:10]} Kh8 {[%clk 00:34:15]} {[%emt 00:00:07]} 26. Rfe1
{[%clk 00:23:00]} {[%emt 00:02:30]} Na7 {[%clk 00:33:46]} {[%emt 00:00:59]} 27.
Qe7 {[%clk 00:20:39]} {[%emt 00:02:50]} Qxe7 {[%clk 00:33:37]} {[%emt
00:00:41]} 28. Rxe7 {[%clk 00:20:58]} {[%emt 00:00:11]} Nc6 {[%clk 00:34:01]}
{[%emt 00:00:06]} 29. Rc7 {[%clk 00:17:57]} {[%emt 00:03:30]} Nxd4 {[%clk
00:33:37]} {[%emt 00:00:55]} 30. cxd4 {[%clk 00:18:16]} {[%emt 00:00:10]} Rad8
{[%clk 00:33:17]} {[%emt 00:00:50]} 31. Rd1 {[%clk 00:16:49]} {[%emt 00:01:54]}
Rd6 {[%clk 00:33:03]} {[%emt 00:00:47]} 32. d5 {[%clk 00:16:22]} {[%emt
00:00:57]} Rfd8 {[%clk 00:33:00]} {[%emt 00:00:34]} 33. Rc5 {[%clk 00:13:33]}
{[%emt 00:03:18]} h6 {[%clk 00:32:17]} {[%emt 00:01:13]} 34. Kf2 {[%clk
00:13:44]} {[%emt 00:00:19]} Kh7 {[%clk 00:32:42]} {[%emt 00:00:05]} 35. Ke3
{[%clk 00:12:27]} {[%emt 00:01:47]} Kg6 {[%clk 00:32:28]} {[%emt 00:00:44]} 36.
f4 {[%clk 00:10:05]} {[%emt 00:02:51]} Re8+ {[%clk 00:32:36]} {[%emt 00:00:22]}
37. Kf3 {[%clk 00:10:10]} {[%emt 00:00:25]} Red8 {[%clk 00:32:49]} {[%emt
00:00:18]} 38. g4 {[%clk 00:09:58]} {[%emt 00:00:42]} f5 {[%clk 00:30:21]}
{[%emt 00:02:58]} 39. gxf5+ {[%clk 00:08:39]} {[%emt 00:01:48]} Kxf5 {[%clk
00:30:38]} {[%emt 00:00:14]} 40. h4 {[%clk 00:04:55]} {[%emt 00:04:14]} R8d7
{[%clk 00:30:56]} {[%emt 00:00:12]} 41. Rd2 {[%clk 00:04:28]} {[%emt 00:00:56]}
Rd8 {[%clk 00:30:58]} {[%emt 00:00:28]} 42. b3 {[%clk 00:03:27]} {[%emt
00:01:31]} R8d7 {[%clk 00:31:04]} {[%emt 00:00:25]} 43. a4 {[%clk 00:02:46]}
{[%emt 00:01:10]} bxa4 {[%clk 00:31:11]} {[%emt 00:00:24]} 44. bxa4 {[%clk
00:03:11]} {[%emt 00:00:05]} Rb6 {[%clk 00:30:50]} {[%emt 00:00:50]} 45. d6+
{[%clk 00:02:54]} {[%emt 00:00:47]} Kf6 {[%clk 00:30:22]} {[%emt 00:00:58]} 46.
Kg4 {[%clk 00:02:10]} {[%emt 00:01:14]} Rbxd6 {[%clk 00:29:01]} {[%emt
00:01:51]} 47. Rxd6+ {[%clk 00:02:26]} {[%emt 00:00:14]} Rxd6 {[%clk 00:27:49]}
{[%emt 00:01:43]} 48. a5 {[%clk 00:02:06]} {[%emt 00:00:50]} Ke5 {[%emt
00:00:05]} 1/2-1/2